bitfinex/quotes_BTCUSD_20230405
["timestamp","ask_amount","ask_price","bid_price","bid_amount"]
[1680657691006,0.024944,28601.0,28600.0,0.0302302]
[1680657691225,0.024944,28601.0,28600.0,0.0302902]
[1680657691441,0.024944,28601.0,28600.0,0.0303502]
[1680657691672,0.024944,28601.0,28600.0,0.0291702]
[1680657692130,0.108856,28601.0,28600.0,0.0301702]
[1680657692412,0.108856,28601.0,28600.0,0.0303502]
[1680657692640,0.108964,28601.0,28600.0,0.0361702]
[1680657692861,0.035433,28601.0,28600.0,0.0361702]
[1680657693077,0.035433,28601.0,28600.0,0.0291702]
[1680657693925,0.024944,28601.0,28600.0,0.0291702]
[1680657694148,0.0197,28601.0,28600.0,0.0291702]
[1680657694377,0.024944,28601.0,28600.0,0.0311702]
[1680657694595,0.024944,28601.0,28600.0,0.0291702]
[1680657694818,0.024944,28601.0,28600.0,0.0301702]
[1680657695046,0.0197,28601.0,28600.0,0.0301702]
[1680657695692,0.0197,28601.0,28600.0,0.0291702]
[1680657697059,0.056411,28601.0,28600.0,0.0291702]
[1680657697741,0.035433,28601.0,28600.0,0.0291702]
[1680657697954,0.024944,28601.0,28600.0,0.0291702]
[1680657698416,0.0197,28601.0,28600.0,0.0291702]
[1680657700273,0.0481474,28602.0,28600.0,0.0291702]
[1680657701445,0.0429034,28602.0,28600.0,0.75658076]
[1680657701666,0.0429034,28602.0,28601.0,0.72741056]
[1680657702097,0.0481474,28602.0,28601.0,0.72741056]
[1680657702319,0.0586354,28602.0,28601.0,0.75608239]
[1680657702591,0.0481474,28602.0,28601.0,0.72741056]
[1680657702856,0.0481474,28602.0,28600.0,0.00018]
[1680657702857,0.0586354,28602.0,28600.0,0.00018]
[1680657703124,0.0197,28601.0,28597.0,0.00018]
[1680657703357,0.0197,28599.0,28598.0,0.35471056]
[1680657703575,0.024944,28599.0,28598.0,0.00018]
[1680657703796,0.024944,28599.0,28596.0,0.37288]
[1680657704014,0.024944,28599.0,28596.0,0.00018]
[1680657704015,0.0197,28597.0,28596.0,0.00018]
[1680657704235,0.0197,28597.0,28594.0,0.00018]
[1680657704236,0.085897,28597.0,28594.0,0.00018]
[1680657704456,0.0197,28595.0,28593.0,0.00012]
[1680657704672,0.024945,28595.0,28593.0,0.00018]
[1680657704891,0.024945,28595.0,28592.0,0.00018]
[1680657706244,0.024945,28595.0,28593.0,0.001]
[1680657706482,0.024945,28595.0,28592.0,0.00018]
[1680657706703,0.024945,28595.0,28592.0,0.01418]
[1680657707135,0.024945,28595.0,28592.0,0.00018]
[1680657707386,0.024945,28595.0,28593.0,0.001]
[1680657707609,0.024945,28595.0,28592.0,0.00018]
[1680657707851,0.0197,28595.0,28592.0,0.01418]
[1680657708070,0.0197,28595.0,28592.0,0.00018]
[1680657708280,0.024945,28595.0,28592.0,0.00818]
[1680657708712,0.0197,28595.0,28592.0,0.00818]
[1680657709150,0.024945,28595.0,28592.0,0.00018]
[1680657709373,0.005245,28595.0,28592.0,0.01418]
[1680657709809,0.024945,28595.0,28592.0,0.00018]
[1680657710033,0.024945,28595.0,28592.0,0.00818]
[1680657711374,0.024945,28595.0,28593.0,0.0271155]
[1680657711602,0.51630737,28594.0,28593.0,0.0271155]
[1680657711931,0.8179429,28594.0,28589.0,0.00018]
[1680657712160,0.8179429,28594.0,28585.0,0.00018]
[1680657712161,0.0197,28590.0,28585.0,0.00018]
[1680657712390,0.0196,28587.0,28583.0,0.08263215]
[1680657712614,0.15763781,28586.0,28583.0,0.00018]
[1680657713076,0.15763781,28586.0,28582.0,0.0211]
[1680657713323,0.14714381,28586.0,28582.0,0.0211]
[1680657713548,0.005247,28586.0,28584.0,0.02551749]
[1680657713772,0.006247,28586.0,28584.0,0.02551749]
[1680657713996,0.005247,28586.0,28584.0,0.02551749]
[1680657714222,0.00513292,28586.0,28584.0,0.02551749]
[1680657714440,0.00513292,28586.0,28582.0,0.0211]
[1680657715340,0.00613292,28586.0,28582.0,0.0411]
[1680657716915,0.00613292,28586.0,28582.0,0.76851056]
[1680657717135,0.00613292,28586.0,28582.0,0.76869056]
[1680657718265,0.00613292,28586.0,28583.0,0.72741056]
[1680657719026,0.00601484,28586.0,28583.0,0.72741056]
[1680657719507,0.00501484,28586.0,28584.0,0.02571916]
[1680657719720,0.0197,28585.0,28584.0,0.38042972]
[1680657719955,0.024947,28585.0,28584.0,0.38042972]
[1680657720318,0.0197,28585.0,28584.0,0.38042972]
[1680657720552,0.0197,28585.0,28584.0,1.48060972]
[1680657720953,0.0197,28588.0,28587.0,1.1]
[1680657721961,0.0197,28588.0,28587.0,1.10018]
[1680657722164,0.031946,28588.0,28586.0,0.00018]
[1680657722386,0.031946,28588.0,28585.0,0.3727]
[1680657722387,0.02940087,28588.0,28585.0,0.72741056]
[1680657723491,0.14714281,28588.0,28586.0,0.02515053]
[1680657723698,0.073819,28587.0,28586.0,0.02515053]
[1680657723926,0.110548,28587.0,28586.0,0.02515053]
[1680657724363,0.110548,28587.0,28582.0,0.39398]
[1680657724604,0.0197,28586.0,28582.0,0.74869056]
[1680657724825,0.015742,28585.0,28582.0,0.74869056]
[1680657725039,0.015742,28585.0,28582.0,0.02128]
[1680657725266,0.015742,28585.0,28582.0,0.0211]
[1680657726747,0.015742,28585.0,28582.0,0.0411]
[1680657726959,0.015742,28585.0,28582.0,0.0211]
[1680657727231,0.015742,28585.0,28582.0,0.0221]
[1680657728537,0.0197,28583.0,28582.0,0.0221]
[1680657728755,0.056433,28583.0,28582.0,0.0221]
[1680657729253,0.107087,28583.0,28582.0,0.0221]
[1680657729464,0.107087,28583.0,28582.0,0.0211]
[1680657729626,0.005247,28583.0,28582.0,0.0211]
[1680657729826,0.011247,28583.0,28582.0,0.0211]
[1680657730247,0.005247,28583.0,28582.0,0.0211]
[1680657730478,0.062299,28583.0,28582.0,0.04640117]
[1680657730901,0.066794,28583.0,28582.0,0.04640117]
[1680657731136,0.080794,28583.0,28582.0,0.04840117]
[1680657731622,0.081004,28583.0,28579.0,0.3727]
[1680657731860,0.029742,28583.0,28580.0,0.35471056]
[1680657732059,0.050673,28581.0,28580.0,0.35471056]
[1680657732286,0.019247,28583.0,28580.0,0.35471056]
[1680657732489,0.005247,28583.0,28581.0,0.0235316]
[1680657732685,0.051927,28582.0,28581.0,0.0235316]
[1680657733037,0.005247,28583.0,28581.0,0.0235316]
[1680657733735,0.013,28582.0,28581.0,0.0245316]
[1680657733949,0.005247,28583.0,28581.0,0.0235316]
[1680657734196,0.018247,28583.0,28581.0,0.0245316]
[1680657736591,0.018247,28583.0,28581.0,0.0195316]
[1680657738809,0.013,28583.0,28581.0,0.0195316]
[1680657739310,0.013,28583.0,28582.0,0.72741056]
[1680657739530,0.013,28583.0,28582.0,0.82741056]
[1680657739978,0.1003,28587.0,28584.0,0.3727]
[1680657740217,0.1003,28587.0,28586.0,1.1]
[1680657740433,0.1,28587.0,28586.0,1.45471056]
[1680657740652,0.1,28587.0,28586.0,1.82741056]
[1680657741305,0.1,28587.0,28586.0,2.22747056]
[1680657741603,0.1,28587.0,28586.0,2.22741056]
[1680657741857,0.0181,28595.0,28589.0,0.7727]
[1680657742058,0.005245,28596.0,28590.0,0.82741056]
[1680657742283,0.005245,28597.0,28591.0,0.54757]
[1680657742506,0.005245,28597.0,28592.0,0.35471056]
[1680657743188,0.001,28596.0,28593.0,1.1]
[1680657743413,0.005245,28596.0,28593.0,1.1]
[1680657743632,0.005245,28596.0,28592.0,0.35489056]
[1680657743633,0.005245,28596.0,28592.0,1.45489056]
[1680657743882,0.005245,28596.0,28592.0,1.45471056]
[1680657744104,0.005245,28596.0,28592.0,0.35471056]
[1680657744297,0.005245,28596.0,28592.0,1.45471056]
[1680657744554,0.005245,28596.0,28592.0,1.47671056]
[1680657744788,0.005245,28597.0,28592.0,1.45471056]
[1680657745001,0.001,28596.0,28595.0,1.1]
[1680657745650,0.005245,28597.0,28595.0,1.1]
[1680657745847,0.001,28596.0,28595.0,1.113]
[1680657746540,0.024345,28596.0,28595.0,0.013]
[1680657746983,0.077498,28596.0,28595.0,0.013]
[1680657747421,0.077498,28596.0,28589.0,1.4727]
[1680657747422,0.076498,28596.0,28589.0,1.4727]
[1680657747635,0.005245,28596.0,28589.0,1.82741056]
[1680657747847,0.0179,28593.0,28589.0,1.82741056]
[1680657748067,0.005246,28592.0,28589.0,1.82741056]
[1680657748511,0.005246,28592.0,28589.0,1.107]
[1680657748726,0.005246,28592.0,28589.0,1.1]
[1680657748948,0.0181,28590.0,28589.0,1.114]
[1680657749176,0.107523,28590.0,28588.0,0.00018]
[1680657749394,0.0668821,28589.0,28582.0,6e-05]
[1680657749700,0.0181,28583.0,28580.0,0.00018]
[1680657749916,0.103021,28588.0,28580.0,0.00012]
[1680657749917,0.033744,28582.0,28580.0,0.00012]
[1680657750125,0.033744,28582.0,28580.0,0.00018]
[1680657750362,0.033744,28582.0,28579.0,0.00018]
[1680657750597,0.17564081,28582.0,28579.0,0.35489056]
[1680657750819,0.17564081,28582.0,28580.0,0.001]
[1680657750820,0.033744,28582.0,28580.0,0.001]
[1680657751039,0.033744,28582.0,28580.0,0.00118]
[1680657751255,0.032144,28582.0,28580.0,0.00018]
[1680657751473,0.032144,28582.0,28579.0,0.00718]
[1680657751474,0.033144,28582.0,28579.0,0.00718]
[1680657751689,0.032144,28582.0,28579.0,0.00018]
[1680657752046,0.032144,28582.0,28580.0,0.001]
[1680657752650,0.032144,28582.0,28579.0,0.00018]
[1680657753062,0.032144,28582.0,28578.0,1.12128]
[1680657753290,0.021648,28582.0,28578.0,1.47599056]
[1680657753700,0.022648,28582.0,28579.0,0.007]
[1680657753930,0.021648,28582.0,28579.0,0.00018]
[1680657754102,0.022648,28582.0,28579.0,0.00018]
[1680657754305,0.021648,28582.0,28579.0,0.00018]
[1680657754865,0.022648,28582.0,28579.0,0.00718]
[1680657756389,0.022648,28582.0,28580.0,0.02474206]
[1680657756627,0.067705,28581.0,28580.0,0.02474206]
[1680657756841,0.104441,28581.0,28580.0,0.02474206]
[1680657757693,0.117441,28581.0,28580.0,0.02574206]
[1680657757968,0.104441,28581.0,28580.0,0.02474206]
[1680657758176,0.121441,28581.0,28580.0,0.02674206]
[1680657758594,0.77615156,28581.0,28580.0,0.02674206]
[1680657758800,0.77615156,28581.0,28580.0,0.02692206]
[1680657759861,0.349144,28581.0,28580.0,0.02692206]
[1680657760067,0.338648,28581.0,28580.0,0.02692206]
[1680657762754,0.390266,28581.0,28580.0,0.02692206]
[1680657763168,0.090266,28581.0,28580.0,0.02692206]
[1680657763379,0.390266,28581.0,28580.0,0.02674206]
[1680657763601,0.390266,28581.0,28580.0,0.02692206]
[1680657764219,0.090266,28581.0,28580.0,0.02692206]
[1680657764435,0.090266,28581.0,28580.0,0.02674206]
[1680657764436,0.038648,28581.0,28580.0,0.02674206]
[1680657764652,0.109127,28581.0,28580.0,0.02674206]
[1680657765112,0.161609,28581.0,28580.0,0.02674206]
[1680657765339,0.53353006,28581.0,28580.0,0.02674206]
[1680657765608,0.83353006,28581.0,28580.0,0.02674206]
[1680657765831,0.81653006,28581.0,28580.0,0.02474206]
[1680657766048,0.81631956,28581.0,28580.0,0.02674206]
[1680657766918,0.79931956,28581.0,28580.0,0.02474206]
[1680657767133,0.81631956,28581.0,28580.0,0.02674206]
[1680657767341,0.79931956,28581.0,28580.0,0.02474206]
[1680657767548,0.81631956,28581.0,28580.0,0.02674206]
[1680657767759,0.81631956,28581.0,28580.0,0.02474206]
[1680657767760,0.79931956,28581.0,28580.0,0.02474206]
[1680657768280,0.74683756,28581.0,28580.0,0.02474206]
[1680657768536,0.85365192,28581.0,28580.0,0.02474206]
[1680657768807,0.73634156,28581.0,28580.0,0.02474206]
[1680657769069,0.77433356,28581.0,28580.0,0.02674206]
[1680657769794,0.77433356,28581.0,28580.0,0.002]
[1680657770560,0.77433356,28581.0,28580.0,0.02604938]
[1680657774399,0.77433356,28581.0,28580.0,0.00190574]
[1680657774850,0.75334156,28581.0,28580.0,0.00190574]
[1680657775086,0.73759756,28581.0,28580.0,0.00190574]
[1680657775315,0.3334,28581.0,28580.0,0.00190574]
[1680657775547,0.038648,28581.0,28580.0,0.00190574]
[1680657776406,0.021648,28581.0,28580.0,0.02395261]
[1680657777070,0.027648,28581.0,28580.0,0.02495261]
[1680657778394,0.038144,28581.0,28580.0,0.02495261]
[1680657778842,0.03794663,28581.0,28580.0,0.02495261]
[1680657779715,0.015744,28581.0,28580.0,0.02395261]
[1680657780194,0.005248,28581.0,28580.0,0.02395261]
[1680657780417,0.021448,28582.0,28580.0,0.02395261]
[1680657781101,0.013,28581.0,28580.0,0.02495261]
[1680657781325,0.018248,28581.0,28580.0,0.02495261]
[1680657781754,0.005248,28581.0,28580.0,0.02395261]
[1680657781969,0.005248,28581.0,28580.0,0.02495261]
[1680657782165,0.005248,28581.0,28580.0,0.02395261]
[1680657782414,0.018248,28581.0,28580.0,0.02495261]
[1680657782851,0.013,28581.0,28580.0,0.02495261]
[1680657783955,0.018248,28581.0,28580.0,0.02513261]
[1680657784177,0.013,28581.0,28580.0,0.02513261]
[1680657785142,0.0163,28583.0,28580.0,0.02413261]
[1680657785345,0.013,28581.0,28580.0,0.02513261]
[1680657785549,0.01065634,28581.0,28580.0,0.02495261]
[1680657787113,0.01065634,28581.0,28580.0,0.07743561]
[1680657787359,0.01065634,28581.0,28580.0,0.80484617]
[1680657787606,0.01065634,28581.0,28580.0,0.93773717]
[1680657788057,0.01065634,28581.0,28580.0,0.92024317]
[1680657788281,0.005247,28588.0,28582.0,1.1]
[1680657789009,0.005247,28588.0,28583.0,0.1]
[1680657789890,0.005247,28588.0,28581.0,0.3727]
[1680657790113,0.14189681,28587.0,28581.0,0.72741056]
[1680657790346,0.005247,28586.0,28581.0,0.72741056]
[1680657790562,0.14714381,28586.0,28582.0,0.025]
[1680657790783,0.01915659,28589.0,28581.0,0.72741056]
[1680657790784,0.005757,28587.0,28581.0,0.72741056]
[1680657791004,0.14814381,28587.0,28581.0,0.75241056]
[1680657791217,0.14865381,28587.0,28581.0,0.75241056]
[1680657791430,0.14765381,28587.0,28581.0,0.72741056]
[1680657791670,0.001,28586.0,28581.0,0.59784596]
[1680657791891,0.005247,28586.0,28582.0,0.1]
[1680657793416,0.005247,28586.0,28583.0,0.0220515]
[1680657793564,0.007247,28586.0,28583.0,0.0220515]
[1680657793775,0.005247,28586.0,28583.0,0.0220515]
[1680657793980,0.007247,28586.0,28583.0,0.0220515]
[1680657794381,0.005247,28586.0,28583.0,0.0220515]
[1680657794580,0.017741,28586.0,28583.0,0.0240515]
[1680657794784,0.16151071,28586.0,28583.0,0.0220515]
[1680657795024,0.070649,28584.0,28583.0,0.0240515]
[1680657795274,0.032652,28584.0,28583.0,0.0240515]
[1680657795465,0.081999,28584.0,28583.0,0.0240515]
[1680657796513,0.081999,28584.0,28578.0,0.0211]
[1680657796514,0.032652,28584.0,28578.0,0.0211]
[1680657796753,0.015744,28582.0,28578.0,0.0211]
[1680657796938,0.15815081,28582.0,28578.0,0.0211]
[1680657797401,0.016254,28582.0,28578.0,0.0211]
[1680657797622,0.015744,28582.0,28579.0,0.02235392]
[1680657797840,0.016744,28582.0,28579.0,0.02235392]
[1680657798076,0.015744,28582.0,28579.0,0.02235392]
[1680657798288,0.016744,28582.0,28579.0,0.02235392]
[1680657798502,0.015744,28582.0,28578.0,0.0211]
[1680657799554,0.016744,28582.0,28579.0,0.002]
[1680657799822,0.015744,28582.0,28578.0,1.1211]
[1680657800032,0.016744,28582.0,28578.0,1.1231]
[1680657800284,0.015744,28582.0,28578.0,1.1211]
[1680657800504,0.016744,28582.0,28579.0,0.002]
[1680657800906,0.015744,28582.0,28578.0,1.1211]
[1680657801340,0.015744,28582.0,28580.0,0.02230119]
[1680657802453,0.016744,28582.0,28580.0,0.02230119]
[1680657802669,0.015744,28582.0,28580.0,0.02230119]
[1680657802901,0.018744,28582.0,28580.0,0.02230119]
[1680657803787,0.015744,28582.0,28580.0,0.02230119]
[1680657804007,0.016744,28582.0,28580.0,0.02430119]
[1680657805172,0.016744,28582.0,28577.0,0.1]
[1680657805389,0.15864081,28582.0,28581.0,0.02502292]
[1680657805627,0.016744,28582.0,28581.0,0.02502292]
[1680657806171,0.015744,28582.0,28581.0,0.02502292]
[1680657806542,0.018744,28582.0,28581.0,0.02502292]
[1680657808149,0.056136,28582.0,28581.0,0.02502292]
[1680657808580,0.053136,28582.0,28581.0,0.02502292]
[1680657808800,0.069136,28582.0,28581.0,0.02502292]
[1680657809251,0.12313,28582.0,28581.0,0.02502292]
[1680657809682,0.10713,28582.0,28581.0,0.02502292]
[1680657809903,0.13064,28582.0,28581.0,0.02502292]
[1680657810345,0.63841456,28582.0,28581.0,0.02502292]
[1680657810466,0.53841456,28582.0,28575.0,0.0211]
[1680657810694,0.0163,28579.0,28575.0,0.0211]
[1680657810895,0.015745,28578.0,28575.0,0.0211]
[1680657811311,0.015745,28578.0,28576.0,0.02535255]
[1680657811520,0.015745,28578.0,28574.0,0.00755255]
[1680657811928,0.016745,28578.0,28574.0,0.00755255]
[1680657812139,0.015745,28578.0,28574.0,0.00755255]
[1680657812359,0.017745,28578.0,28574.0,0.00755255]
[1680657815351,0.37245556,28578.0,28574.0,0.00755255]
[1680657815559,0.37296556,28578.0,28574.0,0.00755255]
[1680657815826,0.35722056,28578.0,28574.0,0.00755255]
[1680657816258,0.00251,28578.0,28575.0,0.35471056]
[1680657816464,0.002,28578.0,28575.0,0.80986271]
[1680657816672,0.002,28578.0,28576.0,0.1]
[1680657817086,0.002,28578.0,28576.0,0.18245215]
[1680657817318,0.31691,28582.0,28576.0,0.08245215]
[1680657817535,0.31691,28582.0,28575.0,0.12371522]
[1680657817536,0.006248,28578.0,28575.0,0.08245215]
[1680657817746,0.005248,28578.0,28575.0,0.02245215]
[1680657818134,0.006248,28578.0,28575.0,0.12245215]
[1680657818355,0.0162,28579.0,28575.0,0.02245215]
[1680657818558,0.001,28578.0,28575.0,0.12245215]
[1680657818763,0.001,28578.0,28575.0,0.24616737]
[1680657818969,0.001,28578.0,28575.0,0.22371522]
[1680657822436,0.006248,28578.0,28575.0,0.12371522]
[1680657822643,0.006248,28578.0,28574.0,1.56417206]
[1680657822973,0.006248,28578.0,28574.0,1.56405206]
[1680657823180,0.026896,28580.0,28574.0,0.66429522]
[1680657823181,0.01691,28580.0,28574.0,0.66429522]
[1680657823379,0.005248,28579.0,28575.0,0.1]
[1680657823615,0.001,28578.0,28575.0,0.1]
[1680657824423,0.005248,28579.0,28575.0,0.1]
[1680657824663,0.006248,28578.0,28574.0,0.12371522]
[1680657824874,0.50285537,28578.0,28573.0,0.12371522]
[1680657825176,0.50285537,28578.0,28572.0,0.14481522]
[1680657825177,0.0162,28576.0,28572.0,0.14481522]
[1680657825394,0.005249,28575.0,28572.0,0.14481522]
[1680657825612,0.005759,28575.0,28572.0,0.14481522]
[1680657826060,0.00051,28575.0,28572.0,0.14481522]
[1680657826486,0.00051,28575.0,28572.0,0.0211]
[1680657827139,0.00151,28575.0,28572.0,0.0211]
[1680657827359,0.00151,28575.0,28572.0,0.14481522]
[1680657827780,0.00151,28575.0,28572.0,0.2274865]
[1680657828202,0.00151,28575.0,28573.0,0.08267128]
[1680657828415,0.00151,28575.0,28572.0,0.10377128]
[1680657829016,0.001,28575.0,28572.0,0.04377128]
[1680657830217,0.005248,28578.0,28572.0,0.22371522]
[1680657830429,0.001,28575.0,28572.0,0.22371522]
[1680657830635,0.01671,28580.0,28572.0,0.55655951]
[1680657830855,0.001,28575.0,28572.0,0.55655951]
[1680657831104,0.001,28575.0,28573.0,0.12371522]
[1680657831309,0.001,28575.0,28574.0,0.1]
[1680657831957,0.005248,28579.0,28574.0,0.1]
[1680657832402,0.005758,28579.0,28574.0,0.1]
[1680657832635,0.009,28575.0,28574.0,0.1]
[1680657832840,0.005758,28579.0,28573.0,0.22371522]
[1680657833045,0.014248,28579.0,28573.0,0.22371522]
[1680657833321,0.14189681,28579.0,28574.0,0.1]
[1680657833559,0.005758,28579.0,28574.0,0.1]
[1680657833780,0.009,28575.0,28573.0,0.22371522]
[1680657833990,0.00051,28579.0,28573.0,0.96862378]
[1680657834208,0.00051,28580.0,28575.0,0.1]
[1680657834417,0.00051,28580.0,28575.0,0.22371522]
[1680657834632,0.00051,28581.0,28575.0,0.41618222]
[1680657834890,0.003,28579.0,28575.0,0.35618222]
[1680657835107,0.003,28579.0,28575.0,0.33868522]
[1680657835322,0.003,28579.0,28575.0,0.33968522]
[1680657835540,0.00051,28582.0,28576.0,0.1]
[1680657835749,0.003,28579.0,28576.0,0.1]
[1680657835971,0.00051,28583.0,28578.0,0.7727]
[1680657836215,0.00051,28589.0,28585.0,0.3727]
[1680657836439,0.0163,28593.0,28587.0,0.5476]
[1680657836440,0.00051,28592.0,28587.0,0.5476]
[1680657836668,0.00051,28592.0,28587.0,0.90231056]
[1680657836893,0.02487364,28593.0,28587.0,0.90231056]
[1680657837124,0.02538364,28593.0,28587.0,0.90231056]
[1680657837355,0.02487364,28593.0,28589.0,1.1]
[1680657837597,0.04023,28596.0,28589.0,1.1]
[1680657837823,0.044965,28596.0,28589.0,1.1]
[1680657838511,0.001,28593.0,28589.0,1.128]
[1680657838786,0.0162,28595.0,28589.0,1.1]
[1680657839003,0.0162,28595.0,28589.0,1.128]
[1680657839217,0.0162,28595.0,28589.0,1.1]
[1680657839436,0.0162,28595.0,28589.0,1.128]
[1680657839654,0.03368689,28596.0,28589.0,1.87289856]
[1680657839874,0.03317689,28596.0,28589.0,1.87289856]
[1680657840174,0.16621681,28596.0,28589.0,1.85541056]
[1680657840398,0.16572681,28596.0,28589.0,1.84489956]
[1680657840624,0.001,28595.0,28590.0,0.1]
[1680657840854,0.00051,28595.0,28589.0,0.72741056]
[1680657841071,0.14240681,28595.0,28590.0,0.1]
[1680657841308,0.00051,28595.0,28590.0,0.1]
[1680657841759,0.00151,28595.0,28590.0,0.85541056]
[1680657841986,0.00051,28595.0,28590.0,0.82741056]
[1680657842171,0.001,28595.0,28592.0,0.1]
[1680657842416,0.02332,28596.0,28591.0,0.90228056]
[1680657842895,0.02332,28596.0,28592.0,0.1]
[1680657843109,0.02332,28596.0,28592.0,0.82741056]
[1680657843565,0.02332,28596.0,28593.0,0.72741056]
[1680657843798,0.02332,28596.0,28594.0,0.017486]
[1680657843799,0.02432,28596.0,28594.0,0.017486]
[1680657844039,0.02432,28596.0,28594.0,0.82741056]
[1680657844263,0.02332,28596.0,28594.0,0.72741056]
[1680657844503,0.02432,28596.0,28592.0,1.45882]
[1680657844722,0.02332,28596.0,28592.0,1.43782]
[1680657844962,0.02432,28596.0,28594.0,0.014]
[1680657845200,0.02332,28596.0,28593.0,0.1]
[1680657845411,0.02432,28596.0,28594.0,0.008]
[1680657846278,0.02432,28596.0,28593.0,0.073]
[1680657846792,0.02432,28596.0,28594.0,0.014]
[1680657847028,0.02332,28596.0,28593.0,0.073]
[1680657847247,0.02432,28596.0,28593.0,0.087]
[1680657847467,0.029565,28596.0,28593.0,0.014]
[1680657847683,0.02432,28596.0,28593.0,0.014]
[1680657847931,0.0163,28595.0,28592.0,1.27]
[1680657848145,0.026791,28595.0,28594.0,0.014]
[1680657848339,0.032036,28595.0,28592.0,0.17]
[1680657849189,0.032036,28595.0,28593.0,0.014]
[1680657849404,0.032036,28595.0,28592.0,0.17]
[1680657849613,0.0163,28594.0,28592.0,0.19]
[1680657849822,0.005246,28593.0,28592.0,0.17]
[1680657850539,0.37635656,28593.0,28592.0,0.17]
[1680657850762,0.37635656,28593.0,28592.0,0.19]
[1680657850763,0.37686656,28593.0,28592.0,0.19]
[1680657850988,0.37686656,28593.0,28592.0,0.17]
[1680657851208,0.37886656,28593.0,28592.0,0.19]
[1680657852124,0.37686656,28593.0,28592.0,0.17]
[1680657852342,0.38986656,28593.0,28592.0,0.171]
[1680657852575,0.035156,28593.0,28592.0,0.171]
[1680657852837,0.013,28593.0,28592.0,0.171]
[1680657854948,0.0162,28594.0,28592.0,0.17]
[1680657855182,0.013,28593.0,28592.0,0.171]
[1680657855953,0.0162,28594.0,28592.0,0.17]
[1680657856411,0.013,28593.0,28592.0,0.171]
[1680657856859,0.0162,28594.0,28592.0,0.17]
[1680657857757,0.0162,28594.0,28592.0,0.177]
[1680657857758,0.0172,28594.0,28592.0,0.177]
[1680657858002,0.0162,28594.0,28592.0,0.17]
[1680657858222,0.0172,28594.0,28592.0,0.177]
[1680657858456,0.0162,28594.0,28592.0,0.17]
[1680657858691,0.001,28594.0,28593.0,1.00226056]
[1680657858916,0.001,28594.0,28593.0,1.00956056]
[1680657859134,0.02332,28596.0,28593.0,1.00956056]
[1680657859388,0.001,28594.0,28593.0,1.00956056]
[1680657859617,0.02332,28596.0,28593.0,0.99956056]
[1680657859836,0.02332,28596.0,28593.0,1.00056056]
[1680657860270,0.14189681,28595.0,28593.0,0.0983]
[1680657860487,0.02332,28596.0,28593.0,0.0983]
[1680657860488,0.18202681,28596.0,28593.0,0.0083]
[1680657860699,0.045375,28596.0,28593.0,0.0073]
[1680657860914,0.044865,28596.0,28593.0,0.0073]
[1680657861129,0.03962,28596.0,28593.0,0.0083]
[1680657861340,0.044865,28596.0,28593.0,0.0083]
[1680657861561,0.03962,28596.0,28593.0,0.0073]
[1680657861828,0.03962,28596.0,28593.0,0.0083]
[1680657862043,0.03962,28596.0,28593.0,0.0073]
[1680657862261,0.04062,28596.0,28593.0,0.0213]
[1680657863361,0.045865,28596.0,28593.0,0.0213]
[1680657865326,0.046375,28596.0,28593.0,0.0213]
[1680657866935,0.046375,28596.0,28593.0,0.014]
[1680657867145,0.045865,28596.0,28593.0,0.014]
[1680657868446,0.044865,28596.0,28592.0,0.17]
[1680657869087,0.044865,28596.0,28593.0,0.54756]
[1680657869307,0.029075,28596.0,28593.0,0.54756]
[1680657869578,0.030075,28596.0,28593.0,0.55456]
[1680657870019,0.029075,28596.0,28593.0,0.54756]
[1680657870242,0.0164,28594.0,28592.0,0.19]
[1680657870464,0.005246,28593.0,28592.0,0.17]
[1680657870679,0.0164,28594.0,28593.0,0.007]
[1680657870680,0.021646,28594.0,28593.0,0.007]
[1680657871136,0.0164,28594.0,28592.0,0.17]
[1680657871352,0.0184,28594.0,28592.0,0.19]
[1680657871566,0.0164,28594.0,28592.0,0.17]
[1680657871998,0.021645,28594.0,28592.0,0.17]
[1680657872460,0.022645,28594.0,28593.0,0.007]
[1680657872669,0.021645,28594.0,28592.0,0.17]
[1680657872880,0.022645,28594.0,28592.0,0.184]
[1680657873095,0.033136,28594.0,28592.0,0.184]
[1680657873333,0.053119,28594.0,28592.0,0.17]
[1680657873548,0.19255641,28594.0,28593.0,0.007]
[1680657873762,0.4182956,28594.0,28592.0,0.17]
[1680657873977,0.17121,28593.0,28592.0,0.184]
[1680657874193,0.17121,28593.0,28592.0,0.17]
[1680657874194,0.52404126,28593.0,28592.0,0.17]
[1680657874409,0.52404126,28593.0,28592.0,0.171]
[1680657875080,0.87875182,28593.0,28592.0,0.171]
[1680657875539,0.9123622,28593.0,28592.0,0.172]
[1680657875749,1.25094182,28593.0,28588.0,0.00018]
[1680657875964,0.0163,28589.0,28582.0,1.10018]
[1680657876210,0.75803156,28592.0,28582.0,1.10018]
[1680657876211,0.0163,28584.0,28582.0,1.10018]
[1680657876430,0.15819681,28584.0,28582.0,1.10018]
[1680657876855,0.0163,28584.0,28582.0,1.10018]
[1680657877070,0.0162,28583.0,28582.0,1.10018]
[1680657877360,0.021447,28583.0,28582.0,0.00018]
[1680657877568,0.021447,28583.0,28581.0,0.00018]
[1680657877569,0.83904537,28583.0,28581.0,0.00018]
[1680657877787,0.83904537,28583.0,28581.0,6e-05]
[1680657877788,0.37091056,28582.0,28581.0,6e-05]
[1680657878018,0.68656315,28582.0,28576.0,0.00018]
[1680657878230,0.0163,28577.0,28575.0,0.08278525]
[1680657878452,0.15819681,28577.0,28575.0,0.00018]
[1680657878700,0.0163,28577.0,28575.0,0.00018]
[1680657879346,0.0163,28577.0,28575.0,0.20679629]
[1680657879563,0.0173,28577.0,28575.0,0.21379629]
[1680657879773,0.001,28577.0,28576.0,0.08260525]
[1680657879985,0.001,28577.0,28576.0,0.08278525]